bitfinex/quotes_BTCUSD_20240915
["timestamp","ask_amount","ask_price","bid_price","bid_amount"]
[1726420620810,0.1960078,60016.0,60006.0,1.11682802]
[1726420621683,0.1960078,60016.0,60006.0,1.19139118]
[1726420621890,0.1960078,60016.0,60009.0,0.499924]
[1726420622104,0.1960078,60016.0,60009.0,0.833207]
[1726420622322,0.0039078,60016.0,60009.0,2.4857985]
[1726420622539,0.0039078,60016.0,60009.0,2.71917834]
[1726420622757,0.0039078,60016.0,60009.0,2.81860538]
[1726420623000,0.0039078,60016.0,60009.0,2.71917834]
[1726420623222,0.0039078,60016.0,60009.0,2.84346215]
[1726420623679,0.0039078,60016.0,60009.0,2.43609]
[1726420623891,0.0039078,60016.0,60009.0,2.84666442]
[1726420624112,0.0039078,60016.0,60009.0,3.09655781]
[1726420624322,0.0039078,60016.0,60009.0,2.97233124]
[1726420625229,0.0039078,60016.0,60009.0,2.97433124]
[1726420625442,0.0039078,60016.0,60015.0,0.41651839]
[1726420626350,0.0039078,60016.0,60013.0,0.166629]
[1726420626567,0.0039078,60016.0,60015.0,0.166625]
[1726420626776,0.0039078,60016.0,60012.0,0.333266]
[1726420627006,0.0039078,60016.0,60015.0,0.499875]
[1726420627720,0.0039078,60016.0,60015.0,0.166625]
[1726420628189,0.0039078,60016.0,60013.0,0.166629]
[1726420628432,0.0039078,60016.0,60014.0,0.166627]
[1726420628672,0.0039078,60016.0,60015.0,0.166625]
[1726420628885,0.0039078,60016.0,60015.0,0.499875]
[1726420630020,0.0039078,60016.0,60015.0,0.833125]
[1726420630233,0.0055498,60016.0,60015.0,0.833125]
[1726420630877,0.0055498,60016.0,60015.0,0.499875]
[1726420631354,0.0055498,60016.0,60015.0,0.166625]
[1726420631567,0.0055498,60016.0,60011.0,1.2696]
[1726420631776,0.0055498,60016.0,60015.0,0.166625]
[1726420631985,0.0055498,60016.0,60015.0,0.499875]
[1726420632221,0.0055498,60016.0,60015.0,0.833125]
[1726420632437,0.0055498,60016.0,60015.0,0.499875]
[1726420635963,0.0055498,60016.0,60015.0,0.833125]
[1726420636172,0.0055498,60016.0,60015.0,0.499875]
[1726420638362,0.0055498,60016.0,60015.0,0.833125]
[1726420638816,0.0055498,60016.0,60015.0,2.558975]
[1726420639084,0.001744,60019.0,60018.0,0.833082]
[1726420639297,0.001744,60019.0,60018.0,1.41620839]
[1726420642917,0.001744,60019.0,60018.0,0.88271826]
[1726420643151,0.001744,60019.0,60018.0,2.102682]
[1726420643352,0.001744,60019.0,60018.0,1.2696]
[1726420643558,0.194044,60019.0,60018.0,1.2696]
[1726420643767,0.360657,60019.0,60018.0,1.2696]
[1726420644184,0.194044,60019.0,60018.0,1.2696]
[1726420644804,0.360657,60019.0,60018.0,1.2696]
[1726420645856,0.194044,60019.0,60018.0,1.2696]
[1726420648081,0.194044,60019.0,60018.0,1.436216]
[1726420648513,0.001744,60019.0,60018.0,1.436216]
[1726420648737,0.001744,60019.0,60018.0,2.102682]
[1726420648950,0.001744,60019.0,60018.0,0.499849]
[1726420649175,0.001744,60019.0,60018.0,0.54965428]
[1726420649875,0.001744,60019.0,60017.0,0.04980528]
[1726420650100,0.001744,60019.0,60016.0,0.166682]
[1726420650361,0.001744,60019.0,60016.0,6e-05]
[1726420650780,0.001744,60019.0,60016.0,0.04986528]
[1726420651382,0.001744,60019.0,60018.0,0.166616]
[1726420652291,0.001744,60019.0,60017.0,0.04992558]
[1726420652513,0.001744,60019.0,60017.0,0.21654258]
[1726420652731,0.16836,60019.0,60017.0,0.04992558]
[1726420652947,0.001744,60019.0,60016.0,0.04998558]
[1726420653167,0.166619,60017.0,60016.0,0.04998558]
[1726420653348,0.166619,60017.0,60016.0,6e-05]
[1726420654716,0.499857,60017.0,60016.0,6e-05]
[1726420654940,0.833095,60017.0,60016.0,6e-05]
[1726420655158,0.494919,60017.0,60016.0,6e-05]
[1726420655376,0.828157,60017.0,60016.0,6e-05]
[1726420655658,1.161395,60017.0,60016.0,6e-05]
[1726420656780,0.166636,60011.0,60010.0,1.270421]
[1726420657003,0.359936,60011.0,60010.0,1.270421]
[1726420657236,0.693208,60011.0,60010.0,0.000821]
[1726420657468,1.359752,60011.0,60010.0,0.000821]
[1726420657916,0.833235,60007.0,60006.0,0.000821]
[1726420658137,0.666588,60007.0,60006.0,0.000821]
[1726420658391,0.833235,60007.0,60006.0,0.000821]
[1726420658826,1.166529,60007.0,60006.0,0.000821]
[1726420659038,0.500016,59998.0,59997.0,1.31952558]
[1726420659261,0.500032,59996.0,59995.0,0.04992558]
[1726420659474,0.333355,59996.0,59991.0,0.04992558]
[1726420659745,0.166686,59993.0,59990.0,0.04992558]
[1726420660016,0.333361,59995.0,59989.0,0.04992558]
[1726420660017,0.166691,59991.0,59989.0,0.04992558]
[1726420660255,0.1933,59995.0,59987.0,1.31952558]
[1726420660514,0.1933,59995.0,59987.0,1.2696]
[1726420660770,0.1933,59995.0,59992.0,0.166686]
[1726420661517,0.1933,59995.0,59988.0,0.333398]
[1726420661518,0.1933,59995.0,59990.0,0.333388]
[1726420661778,0.1933,59995.0,59993.0,0.166685]
[1726420662037,0.1933,59995.0,59990.0,0.333388]
[1726420662316,0.1933,59995.0,59994.0,0.166683]
[1726420662576,0.3283,60008.0,60004.0,0.333311]
[1726420662865,0.1933,60010.0,60008.0,0.333288]
[1726420663084,0.1933,60017.0,60014.0,0.166627]
[1726420663319,0.1933,60017.0,60010.0,0.333276]
[1726420663570,0.166623,60016.0,60010.0,0.333276]
[1726420663816,0.1933,60017.0,60004.0,0.24989339]
[1726420664088,0.359922,60017.0,60012.0,0.166631]
[1726420664329,0.359922,60017.0,60007.0,0.333291]
[1726420664330,0.166622,60016.0,60009.0,0.333281]
[1726420664587,0.166631,60013.0,60006.0,0.333298]
[1726420664825,0.333246,60016.0,59999.0,0.29982276]
[1726420664826,0.166625,60015.0,59999.0,0.24989339]
[1726420665076,0.359919,60017.0,59999.0,0.24989339]
[1726420665326,0.1933,60017.0,60012.0,0.166632]
[1726420665658,0.1933,60017.0,60016.0,0.166622]
[1726420665851,0.001744,60019.0,60018.0,0.166616]
[1726420666315,0.001744,60019.0,60018.0,0.499849]
[1726420666571,0.001744,60019.0,60018.0,0.166616]
[1726420667058,0.16836,60019.0,60013.0,0.03344]
[1726420667297,0.16836,60019.0,60015.0,0.166624]
[1726420667298,0.001744,60019.0,60015.0,0.166624]
[1726420667537,0.001744,60019.0,60014.0,0.166626]
[1726420667780,0.168357,60019.0,60014.0,0.166626]
[1726420668027,0.168357,60019.0,60008.0,0.03344]
[1726420668028,0.001744,60019.0,60008.0,0.03344]
[1726420668299,0.001744,60019.0,60007.0,1.602889]
[1726420668300,0.16662,60017.0,60012.0,0.166631]
[1726420668568,0.333238,60018.0,60009.0,0.200079]
[1726420668834,0.001744,60019.0,60012.0,0.166631]
[1726420668835,0.16662,60017.0,60012.0,0.166631]
[1726420669089,0.16662,60017.0,60007.0,1.30304]
[1726420669090,0.168359,60019.0,60009.0,0.333283]
[1726420669344,0.168359,60019.0,60014.0,0.166627]
[1726420669820,0.001744,60019.0,60012.0,0.166632]
[1726420670073,0.001744,60019.0,60013.0,0.166628]
[1726420670811,0.001744,60019.0,60015.0,0.166624]
[1726420671049,0.001744,60019.0,60015.0,0.333249]
[1726420671303,0.001744,60019.0,60010.0,0.333274]
[1726420671554,0.001744,60019.0,60013.0,0.33326]
[1726420671799,0.24989339,60017.0,60005.0,0.04992937]
[1726420672037,0.24989339,60017.0,60000.0,1.35296937]
[1726420672281,0.166634,60012.0,60007.0,0.166646]
[1726420672516,0.333242,60017.0,60001.0,0.333324]
[1726420672749,0.21584631,60018.0,60001.0,0.38325337]
[1726420673009,0.166628,60014.0,60009.0,0.16664]
[1726420673237,0.166622,60016.0,60010.0,0.166636]
[1726420673453,0.166625,60015.0,60010.0,0.166636]
[1726420673664,0.166627,60014.0,60007.0,0.333292]
[1726420673879,0.166627,60014.0,60009.0,0.16664]
[1726420674106,0.166631,60013.0,60007.0,0.166645]
[1726420674312,0.166626,60015.0,60008.0,0.333287]
[1726420674550,0.166628,60014.0,60009.0,0.16664]
[1726420674758,0.333239,60017.0,60007.0,0.333293]
[1726420674968,0.21584631,60018.0,60007.0,0.333293]
[1726420675179,0.166622,60016.0,60012.0,0.166633]
[1726420675388,0.166622,60016.0,60010.0,0.333277]
[1726420675389,0.21584631,60018.0,60007.0,0.333293]
[1726420675603,0.166628,60014.0,60010.0,0.166638]
[1726420676287,0.166623,60016.0,60010.0,0.166638]
[1726420676542,0.24989339,60014.0,60005.0,0.166651]
[1726420676766,0.166641,60010.0,60005.0,0.166651]
[1726420676978,0.166637,60011.0,60005.0,0.166651]
[1726420677227,0.166637,60011.0,60006.0,0.166648]
[1726420677438,0.166631,60013.0,60009.0,0.166639]
[1726420677656,0.166631,60013.0,60005.0,0.333302]
[1726420677657,0.166631,60013.0,60007.0,0.166645]
[1726420678294,0.43959339,60018.0,60007.0,0.166645]
[1726420678505,0.166628,60014.0,60009.0,0.166641]
[1726420678721,0.166631,60013.0,60009.0,0.166641]
[1726420679797,4e-05,60013.0,60007.0,0.333293]
[1726420680006,0.16667,60013.0,60009.0,0.166641]
[1726420681771,4e-05,60013.0,60006.0,0.000823]
[1726420682435,4e-05,60013.0,60010.0,0.166637]
[1726420683549,4e-05,60013.0,60012.0,0.166633]
[1726420683767,4e-05,60013.0,60006.0,0.000823]
[1726420683768,4e-05,60013.0,60010.0,0.166637]
[1726420684658,0.16664,60010.0,60006.0,0.167471]
[1726420684914,0.166642,60009.0,60006.0,0.000823]
[1726420685128,0.333269,60012.0,60006.0,0.000823]
[1726420685129,0.166639,60010.0,60006.0,0.000823]
[1726420685404,4e-05,60013.0,60006.0,0.000823]
[1726420685405,0.24993339,60013.0,60006.0,0.000823]
[1726420685639,0.24989339,60008.0,60006.0,0.000823]
[1726420685854,0.166647,60007.0,60006.0,0.000823]
[1726420686282,0.499941,60007.0,60006.0,0.000823]
[1726420686495,0.684441,60007.0,60006.0,0.000823]
[1726420686706,0.684441,60007.0,59995.0,0.16668]
[1726420686707,0.1845,60007.0,59995.0,0.16668]
[1726420686923,0.166669,59999.0,59995.0,0.16668]
[1726420687143,0.24989339,60004.0,59995.0,0.166678]
[1726420687144,0.166669,60000.0,59995.0,0.166678]
[1726420687366,0.166662,60002.0,59997.0,0.166674]
[1726420687602,0.166664,60001.0,59997.0,0.166674]
[1726420687816,0.166664,60001.0,59995.0,0.500039]
[1726420688037,0.333312,60004.0,59992.0,0.333377]
[1726420688038,0.166667,60000.0,59996.0,0.166677]
[1726420688484,0.166667,60000.0,59994.0,0.166681]
[1726420688727,0.166667,60000.0,59992.0,0.333377]
[1726420688728,0.333328,60001.0,59992.0,0.166687]
[1726420688968,0.1845,60007.0,59990.0,1.270421]
[1726420688969,0.166678,59996.0,59990.0,1.270421]
[1726420689223,0.166679,59996.0,59990.0,1.770498]
[1726420689443,0.166679,59996.0,59991.0,0.166691]
[1726420689886,0.16668,59995.0,59990.0,1.437114]
[1726420690108,0.166677,59997.0,59991.0,0.16669]
[1726420690330,0.333344,59998.0,59990.0,1.270421]
[1726420690331,0.166678,59996.0,59990.0,1.270421]
[1726420690586,0.333344,59998.0,59990.0,1.270421]
[1726420690587,0.166681,59995.0,59990.0,1.270421]
[1726420690799,0.333342,59999.0,59991.0,0.000823]
[1726420691030,0.33335,59997.0,59991.0,0.000823]
[1726420691280,0.33332,60003.0,59991.0,0.000823]
[1726420691517,0.33332,60003.0,59991.0,0.00415649]
[1726420692007,0.0261548,60009.0,59995.0,0.166678]
[1726420692240,0.333314,60004.0,59997.0,0.166673]
[1726420692493,0.166656,60004.0,59993.0,0.00333329]
[1726420692755,0.166657,60004.0,59997.0,0.333346]
[1726420693010,0.166658,60003.0,59999.0,0.166668]
[1726420693244,0.166656,60004.0,59999.0,0.166668]
[1726420693476,0.166656,60004.0,59999.0,0.166669]
[1726420693956,0.02615284,60006.0,59995.0,0.333356]
[1726420693957,0.02615284,60006.0,60000.0,0.166665]
[1726420694181,0.166654,60005.0,60000.0,0.166665]
[1726420694895,0.166653,60005.0,60001.0,0.166663]
[1726420695140,0.166642,60009.0,59992.0,0.24989339]
[1726420695386,0.1806,60014.0,60004.0,0.33331]
[1726420695630,0.1806,60014.0,60006.0,0.333296]
[1726420695862,0.1806,60014.0,60010.0,0.166637]
[1726420696105,0.1806,60014.0,59998.0,0.03344]
[1726420696343,0.166646,60008.0,60000.0,0.333332]
[1726420696582,0.166639,60010.0,60001.0,0.333325]
[1726420696828,0.166639,60010.0,60006.0,0.166649]
[1726420697072,0.1806,60014.0,60006.0,0.166649]
[1726420697311,0.166637,60011.0,60006.0,0.166649]
[1726420697782,0.333267,60012.0,60001.0,0.333325]
[1726420698033,0.1806,60014.0,59994.0,1.31950633]
[1726420698034,0.166643,60009.0,59994.0,1.31950633]
[1726420698268,0.166636,60011.0,60005.0,0.166651]
[1726420699058,0.166643,60009.0,60003.0,0.166657]
[1726420699310,0.166643,60009.0,60004.0,0.166653]
[1726420699815,0.166637,60011.0,60005.0,0.166652]
[1726420700074,0.166637,60011.0,60002.0,0.33332]
[1726420700358,0.16664,60010.0,60004.0,0.166653]
[1726420700600,0.16664,60010.0,60005.0,0.166651]
[1726420700888,0.333268,60012.0,60001.0,0.333326]
[1726420701111,0.333268,60012.0,60005.0,0.166651]
[1726420701361,0.16664,60010.0,60005.0,0.166651]
[1726420702361,0.333268,60012.0,60001.0,0.333326]
[1726420702609,0.333286,60009.0,60003.0,0.166657]
[1726420702861,0.166646,60008.0,60003.0,0.166657]
[1726420703848,0.333286,60009.0,60004.0,0.166654]
[1726420703849,0.166641,60009.0,60004.0,0.166654]
[1726420704071,0.166645,60008.0,60004.0,0.166654]
[1726420704565,0.166649,60007.0,59998.0,0.33334]
[1726420704803,0.166649,60007.0,60002.0,0.166659]
[1726420705057,0.24989339,60007.0,59999.0,0.000823]
[1726420705304,0.24989339,60010.0,59999.0,0.000823]
[1726420705551,0.333303,60006.0,59999.0,0.000823]
[1726420706062,0.166666,60000.0,59999.0,0.000823]
[1726420706351,0.166688,59992.0,59991.0,0.000823]
[1726420706625,0.500065,59992.0,59991.0,0.000823]
[1726420707423,0.166685,59994.0,59991.0,0.000823]
[1726420707672,0.166682,59995.0,59991.0,0.000823]
[1726420708458,0.166683,59994.0,59991.0,0.000823]
[1726420708663,0.166679,59996.0,59991.0,0.000823]
[1726420708892,0.333351,59997.0,59991.0,0.000823]
[1726420709128,0.166679,59996.0,59991.0,0.000823]
[1726420709369,0.333351,59997.0,59991.0,0.000823]
[1726420709614,0.166681,59995.0,59991.0,0.000823]
[1726420711643,0.166681,59995.0,59991.0,0.167514]
[1726420712395,0.500028,59997.0,59991.0,0.167514]
[1726420712606,0.166678,59996.0,59991.0,0.167514]
[1726420712831,0.166684,59994.0,59991.0,0.000823]
[1726420713117,0.166688,59992.0,59991.0,0.000823]
[1726420713332,0.333375,59993.0,59991.0,0.000823]
[1726420713333,0.166686,59993.0,59991.0,0.000823]
[1726420713558,0.333348,59998.0,59992.0,0.166687]
[1726420713786,0.166681,59995.0,59991.0,0.000823]
[1726420714011,0.33335,59997.0,59991.0,0.000823]
[1726420714484,0.166688,59992.0,59991.0,0.000823]
[1726420714703,0.500065,59992.0,59991.0,0.000823]
[1726420715139,0.166688,59992.0,59991.0,0.000823]
[1726420715596,0.500065,59992.0,59991.0,0.000823]
[1726420716035,0.85959874,59992.0,59991.0,0.000823]
[1726420716389,0.833442,59992.0,59991.0,0.000823]
[1726420719324,0.500065,59992.0,59991.0,0.000823]
[1726420719798,0.166688,59992.0,59991.0,0.000823]
[1726420720027,0.500065,59992.0,59991.0,0.000823]
[1726420722293,0.166688,59992.0,59991.0,0.000823]
[1726420725259,0.02615696,59996.0,59991.0,0.167512]
[1726420725477,0.02615696,59996.0,59991.0,0.000823]
[1726420725692,0.02615696,59996.0,59993.0,0.166684]
[1726420726116,0.02615696,59996.0,59991.0,0.000823]
[1726420726325,0.35951396,59996.0,59991.0,0.000823]
[1726420726530,0.166684,59994.0,59991.0,0.000823]
[1726420726952,0.166686,59993.0,59991.0,0.000823]
[1726420727671,0.35951396,59996.0,59991.0,0.000823]
[1726420727917,0.333362,59995.0,59991.0,0.000823]
[1726420728154,0.166688,59992.0,59991.0,0.000823]
[1726420728380,0.500065,59992.0,59991.0,0.000823]
[1726420729340,0.166688,59992.0,59991.0,0.000823]
[1726420729803,0.500065,59992.0,59991.0,0.000823]
[1726420730051,0.166688,59992.0,59991.0,0.000823]
[1726420730530,0.500065,59992.0,59991.0,0.000823]
[1726420730982,0.166688,59992.0,59991.0,0.000823]
[1726420731835,0.333375,59993.0,59986.0,0.156171]
[1726420732067,0.333375,59993.0,59986.0,0.166703]
[1726420732068,0.166693,59991.0,59986.0,0.166703]
[1726420732280,0.166693,59991.0,59971.0,0.0601298]
[1726420732281,0.166686,59993.0,59984.0,0.333418]
[1726420732532,0.001,59992.0,59991.0,0.006]
[1726420732782,0.001,59992.0,59989.0,0.166695]
[1726420733028,0.001,59992.0,59990.0,0.166693]
[1726420733241,0.166683,59994.0,59990.0,0.166693]
[1726420733952,0.166686,59993.0,59988.0,0.166698]
[1726420734221,0.166686,59993.0,59987.0,0.333403]
[1726420734222,0.333362,59995.0,59987.0,0.1667]
[1726420734444,0.166693,59991.0,59986.0,0.166704]
[1726420734697,0.166693,59991.0,59987.0,0.166702]
[1726420734932,0.02615696,59996.0,59989.0,0.166694]
[1726420735180,0.02615696,59996.0,59989.0,0.173694]
[1726420735418,0.166686,59993.0,59990.0,0.003]
[1726420735656,0.166689,59992.0,59988.0,0.166699]
[1726420735913,0.333379,59992.0,59986.0,0.166704]
[1726420736146,0.166695,59990.0,59987.0,0.006]
[1726420736407,0.166695,59990.0,59989.0,0.003]
[1726420736658,0.166698,59989.0,59981.0,0.366843]
[1726420736915,0.1667,59988.0,59983.0,0.166711]
[1726420737153,0.333396,59989.0,59980.0,0.03341]
[1726420737409,0.333396,59989.0,59983.0,0.166712]
[1726420737677,0.1667,59988.0,59984.0,0.166711]
[1726420737902,0.166693,59991.0,59985.0,0.166705]
[1726420738153,0.166695,59990.0,59985.0,0.166705]
[1726420738662,0.166695,59990.0,59989.0,0.007]
[1726420739157,0.166695,59990.0,59985.0,0.166705]
[1726420739398,0.166697,59989.0,59985.0,0.166705]
[1726420739661,0.166697,59989.0,59985.0,0.173705]
[1726420739901,0.166697,59989.0,59985.0,0.166705]
[1726420740390,0.166697,59989.0,59985.0,0.175705]
[1726420740629,0.166697,59989.0,59985.0,0.166705]
[1726420740882,0.166697,59989.0,59977.0,0.04994729]
[1726420740883,0.333384,59991.0,59977.0,0.04994729]
[1726420741129,0.166706,59986.0,59981.0,0.166718]
[1726420741633,0.166709,59985.0,59981.0,0.166718]
[1726420741868,0.333397,59989.0,59985.0,0.011]
[1726420742110,0.333389,59990.0,59985.0,0.008]
[1726420742365,0.166705,59986.0,59985.0,0.008]
[1726420742614,0.166705,59986.0,59981.0,0.166719]
[1726420742848,0.166705,59986.0,59981.0,0.179719]
[1726420743094,0.166704,59987.0,59982.0,0.166716]
[1726420743342,0.166705,59986.0,59982.0,0.166716]
[1726420743583,0.166705,59986.0,59985.0,0.012]
[1726420743827,0.166705,59986.0,59985.0,0.026]
[1726420745062,0.166705,59986.0,59974.0,0.07492126]
[1726420745063,0.3086,59985.0,59974.0,0.0499475]
[1726420745066,0.3086,59985.0,59971.0,0.0047298]
[1726420745067,0.83372,59972.0,59971.0,0.0047298]
[1726420745562,1.41710139,59972.0,59971.0,0.0047298]
[1726420745832,1.41710139,59972.0,59959.0,0.000822]
[1726420745833,0.25919768,59972.0,59959.0,0.000822]
[1726420746114,0.166777,59960.0,59959.0,0.000822]
[1726420746339,0.500332,59960.0,59959.0,0.000822]
[1726420746580,0.5095553,59960.0,59959.0,0.000822]
[1726420746817,0.1760003,59960.0,59959.0,0.000822]
[1726420747076,0.5095553,59960.0,59959.0,0.000822]
[1726420747341,0.8431103,59960.0,59959.0,0.000822]
[1726420747594,1.09300369,59960.0,59959.0,0.000822]
[1726420748107,1.42655869,59960.0,59959.0,0.000822]
[1726420748362,1.61645869,59960.0,59959.0,0.000822]
[1726420748597,1.28290369,59960.0,59959.0,0.000822]
[1726420748847,1.28390369,59960.0,59959.0,0.008822]
[1726420749101,0.95034869,59960.0,59959.0,0.008822]
[1726420749318,0.0102233,59960.0,59959.0,0.008822]
[1726420749538,0.1780003,59960.0,59959.0,0.012822]
[1726420749750,0.0112233,59960.0,59959.0,0.012822]
[1726420749975,0.1780003,59960.0,59959.0,0.012822]
[1726420750654,0.0112233,59960.0,59959.0,0.012822]
[1726420750876,0.0112233,59960.0,59959.0,0.179602]
[1726420751315,0.0112233,59960.0,59959.0,0.012822]
[1726420751529,0.0112233,59960.0,59959.0,0.179602]
[1726420751749,0.0112233,59960.0,59959.0,0.012822]
[1726420752482,0.0112233,59960.0,59959.0,0.179602]
[1726420752707,0.0112233,59960.0,59959.0,0.012822]
[1726420757693,0.0112233,59960.0,59959.0,0.179602]
[1726420758707,0.0112233,59960.0,59959.0,0.012822]
[1726420760420,0.0112233,59960.0,59959.0,0.179602]
[1726420761118,0.0112233,59960.0,59959.0,0.513163]
[1726420761377,0.002,59960.0,59959.0,0.513163]
[1726420761891,0.002,59960.0,59959.0,0.846724]
[1726420763126,0.18994,59979.0,59971.0,0.24989339]
[1726420763369,0.166736,59975.0,59971.0,0.24989339]
[1726420763618,0.166736,59975.0,59969.0,0.166752]
[1726420763899,0.333462,59977.0,59963.0,0.24989339]
[1726420763900,0.00990133,59974.0,59963.0,0.24989339]
[1726420764095,0.00990133,59974.0,59970.0,0.166747]
[1726420764332,0.18994,59979.0,59971.0,0.166746]
[1726420764588,0.00989574,59973.0,59972.0,0.166744]
[1726420764830,0.166727,59978.0,59972.0,0.166744]
[1726420765069,0.00989574,59973.0,59972.0,0.166744]
[1726420766066,0.001,59975.0,59972.0,0.166744]
[1726420766305,0.00989574,59973.0,59972.0,0.169744]
[1726420766538,0.001,59975.0,59973.0,0.166741]
[1726420766773,0.166728,59978.0,59973.0,0.166741]
[1726420767281,0.16673,59977.0,59972.0,0.000823]
[1726420767508,0.16673,59977.0,59972.0,0.004823]
[1726420767947,0.16673,59977.0,59972.0,0.171566]
[1726420768189,0.166728,59978.0,59973.0,0.166741]
[1726420768452,0.18994,59979.0,59975.0,0.166735]
[1726420768697,4e-05,59979.0,59973.0,0.00833471]
[1726420768935,4e-05,59979.0,59978.0,0.166727]
[1726420769173,4e-05,59979.0,59978.0,0.500182]
[1726420769651,4e-05,59979.0,59978.0,0.833637]
[1726420770187,4e-05,59979.0,59978.0,1.200502]
[1726420770899,4e-05,59979.0,59978.0,0.200137]
[1726420771161,4e-05,59979.0,59978.0,0.174727]
[1726420771408,4e-05,59979.0,59978.0,0.504182]
[1726420771677,4e-05,59979.0,59978.0,0.180727]
[1726420771942,4e-05,59979.0,59972.0,0.000823]
[1726420771943,0.166729,59978.0,59972.0,0.167566]
[1726420772222,0.166729,59978.0,59972.0,0.000823]
[1726420772223,0.166733,59976.0,59972.0,0.000823]
[1726420772449,0.01001162,59977.0,59972.0,0.167566]
[1726420772688,0.01000044,59975.0,59972.0,0.167566]
[1726420772924,0.00999486,59974.0,59972.0,0.000823]
[1726420773159,0.00304,59979.0,59972.0,0.000823]
[1726420773391,0.166729,59978.0,59973.0,0.166741]
[1726420773638,0.001,59977.0,59973.0,0.166741]
[1726420773882,0.001,59977.0,59973.0,0.333481]
[1726420774128,0.001,59977.0,59972.0,0.012823]
[1726420774389,4e-05,59979.0,59972.0,0.006823]
[1726420774638,4e-05,59979.0,59975.0,0.166735]
[1726420775104,4e-05,59979.0,59976.0,0.166732]
[1726420775634,4e-05,59979.0,59974.0,0.333475]
[1726420775635,4e-05,59979.0,59977.0,0.166729]
[1726420775861,4e-05,59979.0,59973.0,0.333481]
[1726420775862,4e-05,59979.0,59973.0,0.166739]
[1726420776352,4e-05,59979.0,59973.0,0.333482]
[1726420776591,4e-05,59979.0,59974.0,0.333476]
[1726420777099,4e-05,59979.0,59975.0,0.003]
[1726420777351,4e-05,59979.0,59974.0,0.333476]
[1726420778096,4e-05,59979.0,59974.0,0.335476]
[1726420778557,4e-05,59979.0,59976.0,0.166732]
[1726420779277,0.001686,59979.0,59976.0,0.166732]
[1726420780036,0.001686,59979.0,59976.0,0.168732]
[1726420780275,0.001686,59979.0,59976.0,0.002]
[1726420781050,0.001686,59979.0,59972.0,0.167566]
[1726420781321,0.001686,59979.0,59978.0,0.500182]
[1726420781575,0.007686,59979.0,59978.0,0.500182]
[1726420781830,0.010686,59979.0,59978.0,0.500182]
[1726420782060,0.010686,59979.0,59978.0,1.158337]
[1726420782844,0.004686,59979.0,59978.0,1.491792]
[1726420783370,0.004686,59979.0,59978.0,1.158337]
[1726420783625,0.001686,59979.0,59978.0,1.158337]
[1726420783842,0.002686,59979.0,59978.0,1.186337]
[1726420784077,0.002686,59979.0,59978.0,1.172337]
[1726420784310,0.002686,59979.0,59978.0,1.205747]
[1726420784558,0.001686,59979.0,59978.0,1.205747]
[1726420784802,0.002686,59979.0,59978.0,1.219747]
[1726420786432,0.002686,59979.0,59978.0,0.06141]
[1726420786662,0.002686,59979.0,59978.0,0.228137]
[1726420786897,0.002686,59979.0,59978.0,0.561592]
[1726420787125,0.002686,59979.0,59978.0,0.228137]
[1726420788064,0.002686,59979.0,59978.0,0.028]
[1726420788508,0.01092438,59979.0,59978.0,0.028]
[1726420789201,0.00992438,59979.0,59978.0,0.014]
[1726420789400,0.00992438,59979.0,59978.0,0.018]
[1726420789639,0.00992438,59979.0,59978.0,0.004]
[1726420790092,0.00992438,59979.0,59978.0,0.009]
[1726420790332,1.17699938,59979.0,59978.0,0.009]
[1726420790812,1.17699938,59979.0,59978.0,0.005]
[1726420791264,0.00992438,59979.0,59972.0,0.000823]
[1726420791485,0.166735,59976.0,59972.0,0.000823]
[1726420791715,0.166737,59975.0,59972.0,0.000823]
[1726420791933,0.17495303,59975.0,59972.0,0.000823]
[1726420793036,0.17495303,59975.0,59972.0,0.007823]
[1726420793262,0.17595303,59975.0,59972.0,0.007823]
[1726420793737,0.17595303,59975.0,59972.0,0.015823]
[1726420793982,0.167737,59975.0,59972.0,0.015823]
[1726420794698,0.001,59975.0,59972.0,0.015823]
[1726420794917,0.001,59975.0,59973.0,0.16674]
[1726420795846,0.166729,59978.0,59973.0,0.16674]
[1726420796285,0.001,59975.0,59974.0,0.166738]
[1726420796743,0.166729,59978.0,59974.0,0.166738]
[1726420797843,0.166729,59978.0,59974.0,0.172738]
[1726420798849,0.001686,59979.0,59974.0,0.006]
[1726420799048,0.001686,59979.0,59978.0,0.75007539]
[1726420799247,0.001686,59979.0,59978.0,1.08353039]
[1726420799663,0.001686,59979.0,59978.0,2.35313039]
[1726420800704,0.001686,59979.0,59978.0,2.68658539]
[1726420801289,0.001686,59979.0,59978.0,2.35313039]
[1726420801488,0.001686,59979.0,59978.0,1.769782]
[1726420801703,0.001686,59979.0,59978.0,1.2696]
[1726420802327,0.169411,59979.0,59978.0,1.2766]
[1726420802547,0.502861,59979.0,59978.0,1.2886]
[1726420803029,0.501861,59979.0,59978.0,1.2816]
[1726420803294,0.501861,59979.0,59978.0,1.2926]
[1726420803295,0.502861,59979.0,59978.0,1.2926]
[1726420803737,0.836311,59979.0,59978.0,1.2926]
[1726420803972,0.836311,59979.0,59978.0,1.2816]
[1726420803973,0.835311,59979.0,59978.0,1.2816]
[1726420804198,0.501861,59979.0,59978.0,1.2696]
[1726420804850,0.502861,59979.0,59978.0,1.2766]
[1726420805487,0.502861,59979.0,59978.0,0.007]
[1726420805908,0.502861,59979.0,59978.0,0.008]
[1726420806121,0.501861,59979.0,59978.0,0.001]
[1726420806331,0.501861,59979.0,59972.0,0.167567]
[1726420806332,0.166731,59977.0,59972.0,0.167567]
[1726420806789,0.166731,59977.0,59972.0,0.162567]
[1726420807662,0.169731,59977.0,59972.0,0.162567]
[1726420808590,0.169731,59977.0,59973.0,0.166741]